fUSD/lending_fUSD_20240122
["ID","MTS","AMOUNT","RATE_DAILY","PERIOD"]
[312547943,1705961448483,-151.0,0.00041096,14]
[312547944,1705961448492,-151.0,0.00041096,14]
[312547945,1705961448502,-381.602572,0.00041096,14]
[312547946,1705961448511,-381.602572,0.00041096,14]
[312547947,1705961448520,-381.602572,0.00041096,14]
[312547948,1705961448529,-381.602572,0.00041096,14]
[312547949,1705961448538,-151.0,0.00041096,14]
[312547950,1705961448547,-151.0,0.00041096,14]
[312547951,1705961448556,-151.0,0.00041096,14]
[312547952,1705961448565,-151.0,0.00041096,14]
[312547953,1705961448574,-151.0,0.00041096,14]
[312547954,1705961448583,-151.0,0.00041096,14]
[312547955,1705961448592,-151.0,0.00041096,14]
[312547956,1705961448601,-282.509774,0.00041096,14]
[312547957,1705961448609,-241.833236,0.00041096,14]
[312547958,1705961448618,-151.0,0.00041096,14]
[312547959,1705961448628,-151.0,0.00041096,14]
[312547960,1705961448637,-299.88172,0.00041096,14]
[312547961,1705961448646,-282.448351,0.00041096,14]
[312547962,1705961448655,-381.509945,0.00041096,14]
[312547963,1705961448666,-381.509945,0.00041096,14]
[312547964,1705961448675,-381.509945,0.00041096,14]
[312547965,1705961448684,-381.509945,0.00041096,14]
[312547966,1705961448694,-151.0,0.00041096,14]
[312547967,1705961448703,-151.0,0.00041096,14]
[312547968,1705961448712,-153.271958,0.00041096,14]
[312547969,1705961448721,-383.64,0.000411,4]
[312547970,1705961448730,-383.64,0.000411,4]
[312547971,1705961448739,-383.64,0.000411,4]
[312547972,1705961448749,-383.64,0.000411,4]
[312547973,1705961448760,-383.64,0.000411,4]
[312547974,1705961448769,-383.64,0.000411,4]
[312547975,1705961448778,-383.64,0.000411,4]
[312547976,1705961448787,-383.64,0.000411,4]
[312547977,1705961448796,-383.64,0.000411,4]
[312547978,1705961448806,-383.64,0.000411,4]
[312547979,1705961448815,-383.64,0.000411,4]
[312547980,1705961448824,-383.64,0.000411,4]
[312547981,1705961448833,-383.64,0.000411,4]
[312547982,1705961448841,-383.64,0.000411,4]
[312547983,1705961448850,-383.64,0.000411,4]
[312547984,1705961448859,-383.64,0.000411,4]
[312547985,1705961448869,-383.64,0.000411,4]
[312547986,1705961448878,-383.64,0.000411,4]
[312547987,1705961448887,-383.64,0.000411,4]
[312547988,1705961448896,-383.64,0.000411,4]
[312547989,1705961448906,-3000.0,0.0004115,7]
[312547990,1705961448915,-1007.508,0.00041287,2]
[312547991,1705961448924,-150.0,0.00041384,2]
[312547992,1705961448933,-207.7,0.00041479,120]
[312547993,1705961448943,-1138.0,0.00041487,2]
[312547994,1705961448952,-319.0,0.00041487,2]
[312547995,1705961448960,-268.95619795,0.00041629,13]
[312547996,1705961448969,-2952.28,0.000417,7]
[312547997,1705961448979,-10948.5622294,0.000418,37]
[312547998,1705961448988,-2392.16395605,0.00041847,5]
[312547999,1705961448997,-297.54992735,0.000419,15]
[312548000,1705961449008,-150.0,0.00041999,30]
[312548001,1705961449017,-150.0,0.00041999,30]
[312548002,1705961449026,-150.0,0.00041999,30]
[312548003,1705961449036,-150.0,0.00041999,30]
[312548004,1705961449045,-150.0,0.00041999,30]
[312548005,1705961449054,-150.0,0.00041999,30]
[312548006,1705961449063,-206517.21110229,0.00042,3]
[312548007,1705961449071,-44485.91901874,0.00042,30]
[312548008,1705961449081,-2000.0,0.00042,2]
[312548009,1705961449090,-151.0,0.00042,14]
[312548010,1705961449099,-166.99,0.00042,2]
[312548011,1705961449107,-313.98,0.00042165,2]
[312548012,1705961449116,-150.0,0.00042394,2]
[312548013,1705961449125,-151.0123,0.00042498,14]
[312548014,1705961449134,-2000.0,0.00043,2]
[312548015,1705961449144,-800.0,0.00043,3]
[312548016,1705961449153,-338.46264997,0.0004312,4]
[312548017,1705961449162,-37970.65693748,0.00043251,20]
[312548018,1705961449172,-36155.75030609,0.00043251,20]
[312548019,1705961449181,-20082.65861261,0.00043251,19]
[312548020,1705961449190,-15792.10622518,0.00043251,20]
[312548021,1705961449199,-20156.85784674,0.00043251,19]
[312548022,1705961449208,-150.0,0.00043403,2]
[312548023,1705961449217,-2392.16395605,0.00043426,5]
[312548024,1705961449226,-165.0,0.00043463,2]
[312548025,1705961449235,-178.0,0.00043463,2]
[312548026,1705961449244,-151.0123,0.00043498,14]
[312548027,1705961449254,-2367.07,0.00043513,2]
[312548028,1705961449263,-1383.77,0.00043513,2]
[312548029,1705961449272,-3000.0,0.0004365,19]
[312548030,1705961449281,-8000.0,0.000438,2]
[312548031,1705961449290,-100000.0,0.00044,34]
[312548032,1705961449298,-2000.0,0.00044,2]
[312548033,1705961449308,-166.99,0.00044,2]
[312548034,1705961449317,-174.89352753,0.00044399,4]
[312548035,1705961449325,-150.0,0.00044399,4]
[312548036,1705961449334,-17908.18306979,0.000444,30]
[312548037,1705961449344,-150.0,0.00044412,2]
[312548038,1705961449353,-313.98,0.00044429,2]
[312548039,1705961449363,-1138.0,0.00044487,2]
[312548040,1705961449371,-2114.63513497,0.00044518,8]
[312548041,1705961449381,-402.06,0.00044548,2]
[312548042,1705961449389,-942.11,0.00044548,2]
[312548043,1705961449399,-402.06,0.00044548,2]
[312548044,1705961449408,-402.06,0.00044548,2]
[312548045,1705961449417,-402.06,0.00044548,2]
[312548046,1705961449426,-159.56,0.00044618,15]
[312548047,1705961449437,-381.93576223,0.0004475,30]
[312548048,1705961449445,-268.95619795,0.0004475,17]
[312548049,1705961449454,-2500.0,0.000449,5]
[312548050,1705961449464,-90000.0,0.000449,30]
[312548051,1705961449472,-3562.16889718,0.00044918,8]
[312548052,1705961449481,-261.25592913,0.00044918,6]
[312548053,1705961449490,-100000.0,0.00045,35]
[312548054,1705961449499,-2229.07842076,0.00045,30]
[312548055,1705961449509,-500.0,0.00045,7]
[312548056,1705961449518,-500.0,0.00045,7]
[312548057,1705961449527,-2000.0,0.00045,2]
[312548058,1705961449536,-850.0,0.00045,3]
[312548059,1705961449545,-2392.16395605,0.00045005,5]
[312548060,1705961449554,-152.0,0.00045022,3]
[312548061,1705961449563,-3172.52084455,0.00045039,8]
[312548062,1705961449573,-3052.8627342,0.00045039,8]
[312548063,1705961449582,-584.36841313,0.00045039,6]
[312548064,1705961449591,-4644.64564304,0.00045039,8]
[312548065,1705961449600,-1639.66593202,0.00045039,7]
[312548066,1705961449609,-1079.20298863,0.00045163,8]
[312548067,1705961449618,-8000.0,0.000452,2]
[312548068,1705961449627,-175.18597919,0.00045226,6]
[312548069,1705961449636,-937.91304743,0.0004524,4]
[312548070,1705961449645,-166.99,0.000453,2]
[312548071,1705961449654,-204.0,0.00045323,38]
[312548072,1705961449663,-4107.0840642,0.00045354,8]
[312548073,1705961449672,-974.06516456,0.00045354,6]
[312548074,1705961449681,-1702.68236692,0.00045419,6]
[312548075,1705961449690,-150.0,0.00045422,2]
[312548076,1705961449699,-6848.86152782,0.00045441,2]
[312548077,1705961449707,-151.0123,0.00045498,14]
[312548078,1705961449716,-942.11,0.00045507,2]
[312548079,1705961449725,-942.11,0.00045507,2]
[312548080,1705961449734,-942.11,0.00045507,2]
[312548081,1705961449743,-942.11,0.00045507,2]
[312548082,1705961449752,-402.06,0.00045507,2]
[312548083,1705961449761,-402.06,0.00045507,2]
[312548084,1705961449771,-942.11,0.00045507,2]
[312548085,1705961449781,-402.06,0.00045507,2]
[312548086,1705961449789,-942.11,0.00045507,2]
[312548087,1705961449798,-402.06,0.00045507,2]
[312548088,1705961449807,-942.11,0.00045507,2]
[312548089,1705961449816,-942.11,0.00045507,2]
[312548090,1705961449825,-402.06,0.00045507,2]
[312548091,1705961449833,-942.11,0.00045507,2]
[312548092,1705961449843,-402.06,0.00045507,2]
[312548093,1705961449851,-942.11,0.00045507,2]
[312548094,1705961449861,-402.06,0.00045507,2]
[312548095,1705961449870,-942.11,0.00045507,2]
[312548096,1705961449879,-402.06,0.00045507,2]
[312548097,1705961449889,-936.0,0.00045507,2]
[312548098,1705961449899,-402.06,0.00045507,2]
[312548099,1705961449908,-399.26,0.00045507,2]
[312548100,1705961449918,-150.0,0.00045589,10]
[312548101,1705961449927,-383.64,0.000456,5]
[312548102,1705961449936,-383.64,0.000456,5]
[312548103,1705961449945,-383.64,0.000456,5]
[312548104,1705961449953,-383.64,0.000456,5]
[312548105,1705961449962,-383.64,0.000456,5]
[312548106,1705961449971,-383.64,0.000456,5]
[312548107,1705961449980,-383.64,0.000456,5]
[312548108,1705961449989,-383.64,0.000456,5]
[312548109,1705961449999,-383.64,0.000456,5]
[312548110,1705961450009,-383.64,0.000456,5]
[312548111,1705961450019,-383.64,0.000456,5]
[312548112,1705961450028,-383.64,0.000456,5]
[312548113,1705961450038,-383.64,0.000456,5]
[312548114,1705961450048,-383.64,0.000456,5]
[312548115,1705961450058,-383.64,0.000456,5]
[312548116,1705961450068,-383.64,0.000456,5]
[312548117,1705961450077,-383.64,0.000456,5]
[312548118,1705961450087,-383.64,0.000456,5]
[312548119,1705961450097,-383.64,0.000456,5]
[312548120,1705961450106,-383.64,0.000456,5]
[312548121,1705961450115,-5447.82501893,0.00045605,5]
[312548122,1705961450125,-942.11,0.00045885,2]
[312548123,1705961450134,-942.11,0.00045885,2]
[312548124,1705961450143,-942.11,0.00045885,2]
[312548125,1705961450152,-942.11,0.00045885,2]
[312548126,1705961450161,-942.11,0.00045885,2]
[312548127,1705961450171,-942.11,0.00045885,2]
[312548128,1705961450181,-100000.0,0.00046,36]
[312548129,1705961450190,-290.742256,0.00046,14]
[312548130,1705961450199,-151.0,0.00046,14]
[312548131,1705961450208,-151.0,0.00046,14]
[312548132,1705961450218,-151.0,0.00046,14]
[312548133,1705961450227,-151.0,0.00046,14]
[312548134,1705961450236,-152.559194,0.00046,14]
[312548135,1705961450245,-152.559194,0.00046,14]
[312548136,1705961450255,-151.0,0.00046,14]
[312548137,1705961450265,-241.174263,0.00046,14]
[312548138,1705961450273,-241.174263,0.00046,14]
[312548139,1705961450283,-151.0,0.00046,14]
[312548140,1705961450292,-381.602572,0.00046,14]
[312548141,1705961450302,-381.602572,0.00046,14]
[312548142,1705961450311,-151.0,0.00046,14]
[312548143,1705961450320,-151.0,0.00046,14]
[312548144,1705961450329,-381.509945,0.00046,14]
[312548145,1705961450338,-381.509945,0.00046,14]
[312548146,1705961450348,-151.0,0.00046,14]
[312548147,1705961450360,-2000.0,0.00046,2]
[312548148,1705961450369,-168.18,0.00046022,2]
[312548149,1705961450378,-387.94,0.00046022,2]
[312548150,1705961450387,-817.44,0.00046022,2]
[312548151,1705961450397,-314.05,0.00046022,2]
[312548152,1705961450406,-623.56,0.00046022,2]
[312548153,1705961450415,-159.32,0.00046022,2]
[312548154,1705961450425,-349.32,0.00046022,2]
[312548155,1705961450434,-588.88,0.00046022,2]
[312548156,1705961450443,-408.9,0.00046022,2]
[312548157,1705961450453,-418.78,0.00046022,2]
[312548158,1705961450462,-292.09,0.00046022,2]
[312548159,1705961450471,-294.57,0.00046022,2]
[312548160,1705961450480,-150.0,0.00046022,2]
[312548161,1705961450489,-150.0,0.00046022,2]
[312548162,1705961450498,-150.0,0.00046022,2]
[312548163,1705961450508,-408.9,0.00046022,2]
[312548164,1705961450517,-418.78,0.00046022,2]
[312548165,1705961450526,-150.0,0.00046022,2]
[312548166,1705961450535,-294.57,0.00046022,2]
[312548167,1705961450544,-292.09,0.00046022,2]
[312548168,1705961450553,-150.0,0.00046022,2]
[312548169,1705961450563,-408.9,0.00046022,2]
[312548170,1705961450573,-418.78,0.00046022,2]
[312548171,1705961450582,-150.0,0.00046022,2]
[312548172,1705961450591,-292.09,0.00046022,2]
[312548173,1705961450600,-294.57,0.00046022,2]
[312548174,1705961450609,-150.0,0.00046022,2]
[312548175,1705961450618,-150.0,0.00046022,2]
[312548176,1705961450628,-408.9,0.00046022,2]
[312548177,1705961450637,-150.0,0.00046022,2]
[312548178,1705961450646,-418.78,0.00046022,2]
[312548179,1705961450656,-150.0,0.00046022,2]
[312548180,1705961450665,-294.57,0.00046022,2]
[312548181,1705961450675,-292.09,0.00046022,2]
[312548182,1705961450684,-294.57,0.00046022,2]
[312548183,1705961450694,-150.0,0.00046022,2]
[312548184,1705961450703,-408.9,0.00046022,2]
[312548185,1705961450712,-150.0,0.00046022,2]
[312548186,1705961450722,-292.09,0.00046022,2]
[312548187,1705961450731,-150.0,0.00046022,2]
[312548188,1705961450741,-418.78,0.00046022,2]
[312548189,1705961450751,-3000.0,0.0004615,31]
[312548190,1705961450760,-151.0,0.0004615,14]
[312548191,1705961450770,-150.0,0.00046296,2]
[312548192,1705961450779,-150.0,0.00046431,2]
[312548193,1705961450788,-175.753417,0.00046466,14]
[312548194,1705961450798,-151.0,0.00046466,2]
[312548195,1705961450807,-151.0123,0.00046498,14]
[312548196,1705961450816,-21452.65472652,0.000465,12]
[312548197,1705961450826,-303.903429,0.000465,14]
[312548198,1705961450835,-303.903429,0.000465,14]
[312548199,1705961450845,-187.5,0.00046575,120]
[312548200,1705961450855,-2392.16395605,0.00046584,5]
[312548201,1705961450864,-5434.0,0.000466,2]
[312548202,1705961450873,-313.98,0.00046693,2]
[312548203,1705961450882,-150.0,0.00046836,2]
[312548204,1705961450892,-150.0,0.00046836,2]
[312548205,1705961450901,-150.0,0.00046836,2]
[312548206,1705961450911,-150.0,0.00046836,2]
[312548207,1705961450920,-190.09,0.00046836,2]
[312548208,1705961450930,-418.59,0.00046836,2]
[312548209,1705961450939,-942.11,0.00046844,2]
[312548210,1705961450949,-942.11,0.00046844,2]
[312548211,1705961450958,-220.39,0.00046844,2]
[312548212,1705961450967,-150.0,0.00046844,2]
[312548213,1705961451091,-150.0,0.00046844,2]
[312548214,1705961451103,-150.0,0.00046844,2]
[312548215,1705961451113,-150.0,0.00046844,2]
[312548216,1705961451122,-292.09,0.00046844,2]
[312548217,1705961451132,-408.9,0.00046844,2]
[312548218,1705961451141,-294.57,0.00046844,2]
[312548219,1705961451151,-150.0,0.00046844,2]
[312548220,1705961451160,-418.78,0.00046844,2]
[312548221,1705961451170,-292.09,0.00046844,2]
[312548222,1705961451179,-294.57,0.00046844,2]
[312548223,1705961451189,-150.0,0.00046844,2]
[312548224,1705961451198,-408.9,0.00046844,2]
[312548225,1705961451208,-418.78,0.00046844,2]
[312548226,1705961451218,-150.0,0.00046844,2]
[312548227,1705961451229,-150.0,0.00046844,2]
[312548228,1705961451239,-292.09,0.00046844,2]
[312548229,1705961451250,-418.78,0.00046844,2]
[312548230,1705961451261,-408.9,0.00046844,2]
[312548231,1705961451271,-292.09,0.00046844,2]
[312548232,1705961451281,-294.57,0.00046844,2]
[312548233,1705961451291,-150.0,0.00046844,2]
[312548234,1705961451301,-418.78,0.00046844,2]
[312548235,1705961451310,-150.0,0.00046844,2]
[312548236,1705961451320,-294.57,0.00046844,2]
[312548237,1705961451329,-294.57,0.00046844,2]
[312548238,1705961451340,-150.0,0.00046844,2]
[312548239,1705961451350,-150.0,0.00046844,2]
[312548240,1705961451362,-294.57,0.00046844,2]
[312548241,1705961451372,-294.57,0.00046844,2]
[312548242,1705961451382,-418.78,0.00046844,2]
[312548243,1705961451391,-150.0,0.00046844,2]
[312548244,1705961451402,-294.57,0.00046844,2]
[312548245,1705961451411,-418.78,0.00046844,2]
[312548246,1705961451421,-294.57,0.00046844,2]
[312548247,1705961451431,-418.78,0.00046844,2]
[312548248,1705961451441,-510.62,0.00046844,2]
[312548249,1705961451451,-418.78,0.00046844,2]
[312548250,1705961451462,-418.78,0.00046844,2]
[312548251,1705961451472,-418.78,0.00046844,2]
[312548252,1705961451482,-418.78,0.00046844,2]
[312548253,1705961451492,-418.78,0.00046844,2]
[312548254,1705961451502,-418.78,0.00046844,2]
[312548255,1705961451513,-418.78,0.00046844,2]
[312548256,1705961451523,-872.16,0.00046844,2]
[312548257,1705961451533,-177.56,0.00046844,2]
[312548258,1705961451543,-150.0,0.00046844,2]
[312548259,1705961451554,-150.0,0.00046844,2]
[312548260,1705961451563,-150.0,0.00046844,2]
[312548261,1705961451573,-150.0,0.00046844,2]
[312548262,1705961451583,-150.0,0.00046844,2]
[312548263,1705961451593,-52751.763375,0.00046868,2]
[312548264,1705961451603,-3808.2426901,0.00046868,2]
[312548265,1705961451614,-1883.0861449,0.00046868,2]
[312548266,1705961451624,-174.89352753,0.00046899,5]
[312548267,1705961451634,-150.0,0.00046899,5]
[312548268,1705961451644,-174.89352753,0.00046899,5]
[312548269,1705961451654,-150.0,0.00046899,5]
[312548270,1705961451664,-174.89352753,0.00046899,5]
[312548271,1705961451674,-150.0,0.00046899,5]
[312548272,1705961451685,-174.89352753,0.00046899,5]
[312548273,1705961451696,-150.0,0.00046899,5]
[312548274,1705961451705,-2357198.72739331,0.000469,3]
[312548275,1705961452640,-1074.85551195,0.00032,2]
[312548276,1705961452658,-609.77629283,0.00032,2]
[312548277,1705961452668,-1684.63180478,0.00032,2]
[312548278,1705961452678,-1052.11313487,0.00032,2]
[312548279,1705961452689,-632.51866991,0.00032,2]
[312548280,1705961452699,-1684.63180478,0.00032,2]
[312548281,1705961452709,-511069.89397162,0.000469,3]
[312548282,1705961452718,-151.0,0.000469,14]
[312548283,1705961452727,-23784.39830599,0.000469,3]
[312548284,1705961452743,-3004.81095367,0.000469,3]
[312548285,1705961452758,-3717.8,0.000469,3]
[312548286,1705961452770,-496.49500235,0.000469,3]
[312548287,1705961454164,-177.51303068,0.00021332,2]
[312548288,1705961454174,-161.43208065,0.00022999,2]
[312548289,1705961454184,-861.0,0.000318,5]
[312548290,1705961454194,-336.58015327,0.00031999,4]
[312548291,1705961454206,-98.24744126,0.00031999,4]
[312548292,1705961454216,-316.90563559,0.00031999,4]
[312548293,1705961454225,-265.52312923,0.00031999,4]
[312548294,1705961454235,-153.93099958,0.00031999,4]
[312548295,1705961454248,-1.408619,0.00031999,4]
[312548296,1705961454258,-273.26410562,0.00031999,4]
[312548297,1705961454277,-14.98761607,0.00031999,4]
[312548298,1705961454286,-227.43871476,0.00031999,4]
[312548299,1705961454296,-268.63495185,0.00031999,4]
[312548300,1705961454305,-161.9854718,0.00031999,4]
[312548301,1705961454315,-248.21561639,0.00031999,4]
[312548302,1705961454325,-942.11,0.00045885,2]
[312548303,1705961454334,-418.78,0.00046022,2]
[312548304,1705961454345,-150.0,0.00046022,2]
[312548305,1705961454357,-150.0,0.00046022,2]
[312548306,1705961454367,-408.9,0.00046022,2]
[312548307,1705961454376,-292.09,0.00046022,2]
[312548308,1705961454386,-294.57,0.00046022,2]
[312548309,1705961454395,-4432.68762913,0.000469,3]
[312548310,1705961586760,157.13,0.00019526,2]
[312548311,1705962087452,711.97147173,0.0002,10]
[312548331,1705962631803,-335.00350038,0.00021648,2]
[312548332,1705962631816,-49.92221726,0.00021648,2]
[312548333,1705962631826,-157.30357947,0.00021649,2]
[312548334,1705962631836,-80.52714819,0.00021748,2]
[312548335,1705962631848,-69.47285181,0.00021748,2]
[312548336,1705962631857,-999.65037438,0.00021749,2]
[312548337,1705962631870,-657.41962562,0.00021749,2]
[312548338,1705962631879,-700.67,0.0002175,2]
[312548339,1705962631888,-105.46433766,0.0002175,2]
[312548340,1705962631914,-2176.86224856,0.0002175,2]
[312548341,1705962631927,-1271.24,0.0002175,2]
[312548342,1705962631941,-3274.75786361,0.0002175,2]
[312548343,1705962631952,-358.97557567,0.0002175,2]
[312548344,1705962631967,-562.34159793,0.0002175,2]
[312548345,1705962631979,-2250.34837657,0.0002175,2]
[312548346,1705962631988,-1042.70064617,0.00022,2]
[312548347,1705962631998,-170.29904838,0.00022064,2]
[312548348,1705962632021,-737.50852455,0.00022064,2]
[312548349,1705962632033,-750.26242707,0.00022064,2]
[312548350,1705962632042,-9999.99,0.00022064,2]
[312548351,1705962632052,-157.3035794,0.00022695,2]
[312548352,1705962632061,-1296.53962068,0.00022996,2]
[312548353,1705962632070,-266.90437285,0.00022996,2]
[312548354,1705962632081,-84.12002204,0.00022996,2]
[312548355,1705962632090,-214.75999419,0.00022997,2]
[312548356,1705962632100,-406.28724336,0.00022997,2]
[312548357,1705962632109,-150.99,0.00022997,2]
[312548358,1705962632118,-499.99,0.00022997,2]
[312548359,1705962632128,-471.45212933,0.00022998,2]
[312548360,1705962632137,-155.6556456,0.00022998,2]
[312548361,1705962632146,-155.0,0.00022998,2]
[312548362,1705962632155,-157.3035794,0.00023741,2]
[312548363,1705962632164,-157.3035794,0.00024786,2]
[312548364,1705962632173,-164.97,0.00024791,2]
[312548365,1705962632182,-200.0,0.00025,2]
[312548366,1705962632191,-115.71300645,0.00025399,2]
[312548367,1705962632203,-134.28699355,0.00025399,2]
[312548368,1705962632212,-137.20771864,0.00025587,2]
[312548369,1705962632224,-27.19228136,0.00025587,2]
[312548371,1705962632234,-1350.61,0.00025818,2]
[312548373,1705962632243,-157.3035794,0.00025832,2]
[312548375,1705962632252,-467.25,0.00025838,2]
[312548377,1705962632261,-348.43,0.00025868,2]
[312548378,1705962632270,-258.4,0.00026081,2]
[312548379,1705962632279,-10000.0,0.00026224,2]
[312548380,1705962632288,-3597.73,0.00026575,2]
[312548381,1705962632298,-4474.89,0.00026638,2]
[312548382,1705962632307,-1350.61,0.00026773,2]
[312548383,1705962632316,-162.21,0.00026774,2]
[312548384,1705962632325,-2000.0,0.00026787,2]
[312548385,1705962632335,-250.0,0.00026856,2]
[312548386,1705962632345,-750.0,0.00026869,2]
[312548387,1705962632354,-157.3035794,0.00026878,2]
[312548388,1705962632363,-164.97,0.00027055,2]
[312548389,1705962632373,-216.84,0.00027288,2]
[312548390,1705962632382,-163.32,0.00027397,2]
[312548391,1705962632391,-2474.0,0.000274,2]
[312548392,1705962632400,-7684.0,0.000275,2]
[312548393,1705962632410,-348.43,0.00027512,2]
[312548394,1705962632419,-220.84448778,0.00027728,6]
[312548395,1705962632428,-1350.61,0.00027729,2]
[312548396,1705962632437,-200.0,0.00027837,2]
[312548397,1705962632446,-250.0,0.00027848,2]
[312548398,1705962632455,-200.0,0.00027888,2]
[312548399,1705962632465,-157.3035794,0.00027924,2]
[312548400,1705962632474,-500.0,0.00027987,2]
[312548401,1705962632483,-150.7,0.00028045,2]
[312548402,1705962632493,-176.13,0.00028099,2]
[312548403,1705962632502,-150.7,0.00028122,2]
[312548404,1705962632510,-150.7,0.00028199,2]
[312548405,1705962632520,-150.7,0.00028276,2]
[312548406,1705962632529,-150.7,0.00028353,2]
[312548407,1705962632538,-150.7,0.0002843,2]
[312548408,1705962632547,-150.7,0.00028507,2]
[312548409,1705962632556,-150.7,0.00028584,2]
[312548410,1705962632565,-216.84,0.00028657,2]
[312548411,1705962632574,-150.7,0.00028661,2]
[312548412,1705962632584,-1350.61,0.00028684,2]
[312548413,1705962632593,-150.7,0.00028737,2]
[312548414,1705962632602,-150.7,0.00028814,2]
[312548415,1705962632611,-150.7,0.00028891,2]
[312548416,1705962632621,-150.7,0.00028968,2]
[312548417,1705962632630,-157.3035794,0.00028969,2]
[312548418,1705962632639,-150.7,0.00029045,2]
[312548419,1705962632648,-150.7,0.00029122,2]
[312548420,1705962632658,-348.43,0.00029156,2]
[312548421,1705962632666,-150.7,0.00029199,2]
[312548422,1705962632675,-150.7,0.00029276,2]
[312548423,1705962632684,-164.97,0.00029319,2]
[312548424,1705962632694,-258.4,0.00029341,2]
[312548425,1705962632704,-150.7,0.00029353,2]
[312548426,1705962632713,-150.7,0.0002943,2]
[312548427,1705962632722,-150.7,0.00029506,2]
[312548428,1705962632731,-1350.61,0.00029639,2]
[312548429,1705962632742,-163.32,0.0002968,2]
[312548430,1705962632752,-155.0,0.0003,2]
[312548431,1705962632761,-157.3035794,0.00030015,2]
[312548432,1705962632771,-164.4,0.00030401,2]
[312548433,1705962632780,-273.01,0.00030492,2]
[312548434,1705962632790,-348.43,0.00030799,2]
[312548435,1705962632799,-157.3035794,0.00031061,2]
[312548436,1705962632809,-164.97,0.00031583,2]
[312548437,1705962632818,-180.0,0.00031644,2]
[312548438,1705962632828,-164.39,0.0003166,2]
[312548439,1705962632837,-163.32,0.00031963,2]
[312548440,1705962632847,-203.06597764,0.00031999,4]
[312548441,1705962632856,-795.0330165,0.00031999,4]
[312548442,1705962632866,-202.31336424,0.00031999,4]
[312548443,1705962632875,-2778.46490302,0.00031999,4]
[312548444,1705962632885,-1303.04694334,0.00031999,2]
[312548445,1705962632894,-157.3035794,0.00032107,2]
[312548446,1705962632903,-348.43,0.00032443,2]
[312548447,1705962632912,-258.4,0.00032602,2]
[312548448,1705962632922,-159.56,0.00032877,15]
[312548449,1705962632931,-164.39,0.00033149,2]
[312548450,1705962632941,-157.3035794,0.00033153,2]
[312548451,1705962632950,-164.97,0.00033847,2]
[312548452,1705962632959,-4797.7006,0.00033889,2]
[312548453,1705962632968,-2500.0,0.0003389,2]
[312548454,1705962632977,-381.1827803,0.000339,6]
[312548455,1705962632986,-998.11064835,0.000339,2]
[312548456,1705962632996,-408.1505506,0.00033979,2]
[312548457,1705962633005,-408.1505506,0.0003398,2]
[312548458,1705962633014,-408.1505506,0.0003398,2]
[312548459,1705962633023,-520.12872172,0.0003398,5]
[312548460,1705962633032,-284.64078375,0.0003398,2]
[312548461,1705962633041,-4934.34,0.00033989,2]
[312548462,1705962633051,-4934.34,0.00033989,2]
[312548463,1705962633060,-4934.34,0.00033989,2]
[312548464,1705962633069,-4934.34,0.00033989,2]
[312548465,1705962633078,-4934.34,0.00033989,2]